bitfinex/quotes_ETHUSD_20240729
["timestamp","ask_amount","ask_price","bid_price","bid_amount"]
[1722224098306,3.103809,3355.9,3355.1,2.38438]
[1722224098474,2.38394,3355.8,3355.1,2.38438]
[1722224098680,2.384,3355.7,3354.9,2.38456]
[1722224099119,2.38408,3355.6,3354.9,2.38456]
[1722224099788,2.38415,3355.5,3354.7,2.3847]
[1722224099982,2.38421,3355.4,3354.7,2.3847]
[1722224100213,2.38411,3355.6,3354.8,2.38463]
[1722224100415,2.38415,3355.5,3354.8,2.38463]
[1722224100619,2.38431,3355.3,3354.6,2.38478]
[1722224100919,2.93422,3355.4,3354.8,2.38464]
[1722224101129,2.93422,3355.4,3353.7,0.14626503]
[1722224101130,1.23730925,3356.6,3355.0,2.2887]
[1722224101422,4.6067535,3357.4,3356.8,2.3832]
[1722224101423,2.4319,3357.4,3356.8,2.3832]
[1722224101726,2.4319,3357.4,3356.8,2.38321]
[1722224102042,2.4319,3357.4,3356.0,3.484]
[1722224102043,2.4319,3357.4,3356.3,2.38357]
[1722224102328,2.4319,3357.4,3356.2,2.38364]
[1722224102329,2.38301,3357.1,3356.2,2.38364]
[1722224102482,0.476588,3357.0,3356.2,2.38364]
[1722224102682,2.38287,3357.3,3356.4,2.38344]
[1722224102888,2.4319,3357.4,3356.4,2.38344]
[1722224103119,2.4319,3357.4,3355.5,0.05958287]
[1722224103320,2.4319,3357.4,3357.1,2.38294]
[1722224103504,2.4989,3357.7,3356.5,2.38336]
[1722224103704,2.4989,3357.7,3355.7,3.0]
[1722224103705,2.3828,3357.4,3356.6,2.38336]
[1722224103884,2.3828,3357.4,3356.7,2.38327]
[1722224104286,2.63254,3357.6,3356.7,2.38327]
[1722224104287,0.24989,3357.6,3356.7,2.38325]
[1722224104591,0.24989,3357.6,3355.7,0.05958251]
[1722224104592,0.24989,3357.6,3356.9,2.38309]
[1722224104803,0.24989,3357.6,3355.7,2.44357916]
[1722224104804,2.38281,3357.4,3356.7,2.38325]
[1722224105011,2.38287,3357.3,3356.6,2.38334]
[1722224105187,0.51316,3357.4,3356.7,2.38323]
[1722224105384,2.38275,3357.5,3356.7,2.38323]
[1722224105627,0.55,3357.4,3356.8,2.38321]
[1722224106428,0.55,3357.4,3356.6,2.38335]
[1722224106429,2.38286,3357.3,3356.6,2.38335]
[1722224106629,2.38294,3357.2,3356.5,2.38342]
[1722224106831,2.93283,3357.4,3356.5,2.38342]
[1722224107222,2.93283,3357.4,3356.6,2.38336]
[1722224107535,2.93279,3357.4,3356.5,2.860118]
[1722224107734,2.38286,3357.3,3356.5,2.38338]
[1722224107909,2.38286,3357.3,3356.3,2.38356]
[1722224108114,2.38294,3357.2,3356.5,2.38343]
[1722224108523,2.93282,3357.4,3356.6,2.38335]
[1722224108837,2.38286,3357.3,3356.6,2.38335]
[1722224109040,2.38293,3357.2,3356.5,2.38343]
[1722224109239,2.38293,3357.2,3356.6,2.38335]
[1722224109402,0.3114134,3357.2,3356.6,2.38335]
[1722224109734,0.3114134,3357.2,3356.4,0.476726]
[1722224109933,0.3114134,3357.2,3355.8,3.0]
[1722224109934,0.3114134,3357.2,3356.8,2.3832]
[1722224110435,0.3114134,3357.2,3356.1,2.38366]
[1722224110436,0.3114134,3357.2,3356.4,2.38348]
[1722224110624,0.3114134,3357.2,3356.8,2.38318]
[1722224110802,0.3114134,3357.2,3357.1,2.383]
[1722224112713,0.3114134,3357.2,3356.8,2.38318]
[1722224113018,0.3114134,3357.2,3357.1,2.383]
[1722224113347,0.3114134,3357.2,3357.0,2.38306]
[1722224113919,0.3114134,3357.2,3357.0,2.859693]
[1722224114643,0.3114134,3357.2,3357.1,4.766]
[1722224115051,0.3114134,3357.2,3357.0,0.476633]
[1722224115052,2.3351,3356.3,3354.5,2.1676864]
[1722224115209,2.38387,3355.9,3354.8,2.38457]
[1722224115412,2.3351,3356.3,3354.4,0.38004421]
[1722224115413,2.38373,3356.1,3354.4,0.38004421]
[1722224115612,2.38422,3355.4,3354.4,0.38004421]
[1722224115835,4.71897,3355.9,3353.8,2.38532]
[1722224116051,2.38472,3354.7,3353.8,2.38528]
[1722224116225,2.38472,3354.7,3353.0,2.27]
[1722224116226,2.38443,3355.1,3354.1,2.38513]
[1722224116548,2.38408,3355.6,3353.3,0.05962216]
[1722224116754,0.55,3355.7,3354.7,2.38466]
[1722224116954,2.38414,3355.5,3354.7,2.38466]
[1722224117321,2.38421,3355.4,3354.7,2.38466]
[1722224117653,2.38421,3355.4,3354.6,2.38477]
[1722224117859,2.38421,3355.4,3354.4,2.3849]
[1722224118030,2.93429,3355.3,3354.2,2.38501]
[1722224118221,2.38436,3355.2,3354.1,2.38512]
[1722224118423,2.38457,3354.9,3354.2,2.38505]
[1722224118743,2.38443,3355.1,3354.3,2.623495]
[1722224119066,2.38451,3355.0,3354.3,2.623495]
[1722224119446,2.38484,3354.6,3353.9,2.38528]
[1722224120299,3.0,3355.2,3353.7,2.923922]
[1722224120588,2.38479,3354.6,3353.7,2.923922]
[1722224120747,2.38502,3354.3,3353.7,0.538562]
[1722224120942,2.38502,3354.3,3353.8,0.2924082]
[1722224121278,3.484,3354.5,3352.5,2.38623]
[1722224121481,2.4622,3354.9,3351.8,2.38674]
[1722224121482,2.386,3352.9,3351.8,2.38674]
[1722224121774,2.386,3352.9,3351.3,2.3871]
[1722224121775,2.38655,3352.2,3351.3,2.3871]
[1722224121975,2.38655,3352.2,3351.4,2.61361]
[1722224122177,4.66005,3352.4,3351.5,2.38696]
[1722224122380,2.38643,3352.3,3351.5,2.38696]
[1722224122553,2.38643,3352.3,3351.6,0.500065]
[1722224123367,2.2737,3352.4,3351.6,2.886975]
[1722224123555,2.3863,3352.5,3351.7,2.38684]
[1722224124495,3.0,3352.7,3351.5,2.38698]
[1722224124678,3.0,3352.7,3350.5,0.05966241]
[1722224124679,0.3116037,3352.4,3350.5,0.05966241]
[1722224125022,0.3116037,3352.4,3351.6,2.3869]
[1722224125573,0.3116037,3352.4,3351.8,2.38671]
[1722224125811,0.3116037,3352.4,3351.7,2.38682]
[1722224126106,0.3116037,3352.4,3351.8,0.47738]
[1722224126293,2.6979537,3352.4,3351.6,2.38689]
[1722224126603,0.3116037,3352.4,3351.9,2.38664]
[1722224126907,0.3116037,3352.4,3350.4,8.90476]
[1722224126908,2.3865,3352.2,3351.5,7.32]
[1722224127208,0.3116037,3352.4,3351.5,7.32]
[1722224127405,2.38657,3352.1,3351.5,7.32]
[1722224127611,2.38695,3351.6,3350.9,7.32]
[1722224127942,2.3075,3352.0,3349.2,2.38862]
[1722224127943,2.3075,3351.2,3349.2,2.38862]
[1722224128111,2.93728,3351.1,3349.0,2.5343666]
[1722224128411,3.0,3351.6,3351.1,2.38727]
[1722224128568,2.8575,3351.9,3351.3,2.38707]
[1722224128769,0.55,3351.9,3351.5,2.38693]
[1722224129001,2.6979637,3352.4,3351.5,2.38693]
[1722224129224,2.6979637,3352.4,3350.7,2.38751]
[1722224129225,2.93644,3352.3,3351.4,2.38704]
[1722224129424,0.55,3352.3,3351.6,2.38691]
[1722224129811,2.93642,3352.3,3351.5,2.38697]
[1722224130216,3.0,3352.2,3351.5,2.38697]
[1722224130432,0.55,3352.1,3351.5,2.38697]
[1722224130737,0.3116037,3352.4,3351.5,0.33420003]
[1722224131032,2.38642,3352.3,3351.3,2.38707]
[1722224131200,0.3116037,3352.4,3350.9,2.3874]
[1722224131201,2.38664,3352.0,3350.9,2.3874]
[1722224131402,0.3116037,3352.4,3350.7,2.38753]
[1722224131762,0.3116037,3352.4,3351.8,2.38671]
[1722224131921,0.3116037,3352.4,3350.8,0.60438986]
[1722224131922,0.3116037,3352.4,3352.2,2.38645]
[1722224132319,0.3116037,3352.4,3352.0,2.3866]
[1722224132572,0.3116037,3352.4,3351.5,2.38695]
[1722224132573,0.3116037,3352.4,3351.7,2.38681]
[1722224132724,2.6979537,3352.4,3351.6,2.3869]
[1722224132922,0.3116037,3352.4,3351.4,2.38705]
[1722224133149,0.3116037,3352.4,3351.5,2.38697]
[1722224133336,2.38654,3352.2,3351.3,2.38713]
[1722224133533,3.0,3352.3,3351.3,2.38713]
[1722224133753,2.38657,3352.1,3351.3,2.86457]
[1722224133963,0.55,3352.2,3351.3,0.47744]
[1722224134133,0.55,3352.2,3351.7,2.38684]
[1722224134459,2.38683,3351.8,3351.1,7.32]
[1722224134645,0.55,3351.7,3351.1,7.32]
[1722224134853,2.38693,3351.6,3351.1,7.32]
[1722224135237,2.38705,3351.5,3350.8,12.44]
[1722224135481,0.55,3351.4,3350.8,12.44]
[1722224135641,2.93707,3351.4,3350.8,12.44]
[1722224135844,0.55,3351.4,3350.8,12.44]
[1722224136063,2.38704,3351.5,3350.8,12.44]
[1722224136263,2.38721,3351.2,3350.8,12.44]
[1722224136766,2.38711,3351.4,3350.8,12.44]
[1722224137075,0.55,3351.3,3350.8,12.44]
[1722224137265,2.38738,3351.0,3350.8,12.44]
[1722224137470,0.55,3351.3,3350.3,22.23783]
[1722224137657,0.55,3351.4,3350.3,22.23783]
[1722224137972,0.55,3351.4,3350.3,19.85]
[1722224138129,2.38747,3350.9,3350.3,19.85]
[1722224138566,2.38714,3351.3,3350.3,19.85]
[1722224138865,3.0,3351.3,3350.8,2.38747]
[1722224139032,3.55,3351.4,3350.8,2.38747]
[1722224139248,3.0,3351.3,3350.8,2.38747]
[1722224139447,0.55,3351.4,3350.6,2.38763]
[1722224139673,2.93708,3351.4,3350.6,2.38763]
[1722224139979,3.31166895,3351.3,3350.7,2.3875]
[1722224140177,0.31166895,3351.3,3350.7,2.3875]
[1722224140481,0.31166895,3351.3,3350.9,2.3874]
[1722224140679,0.31166895,3351.3,3351.1,2.38725]
[1722224141047,0.31166895,3351.3,3350.9,2.3874]
[1722224141268,0.31166895,3351.3,3350.7,2.865059]
[1722224141449,0.31166895,3351.3,3350.7,0.477519]
[1722224141661,0.31166895,3351.3,3351.1,2.38726]
[1722224142380,0.31166895,3351.3,3350.9,2.38737]
[1722224142590,0.31166895,3351.3,3351.0,2.38731]
[1722224142783,0.31166895,3351.3,3350.8,2.38746]
[1722224143087,0.31166895,3351.3,3350.7,2.38752]
[1722224143284,0.31166895,3351.3,3350.8,2.38748]
[1722224143582,0.31166895,3351.3,3350.9,2.38741]
[1722224144082,0.31166895,3351.3,3351.1,2.38725]
[1722224144506,0.31166895,3351.3,3351.1,0.477466]
[1722224144680,0.31166895,3351.3,3351.0,2.38729]
[1722224145085,0.31166895,3351.3,3350.4,2.38773]
[1722224145086,0.31166895,3351.3,3351.1,2.38727]
[1722224145308,0.31166895,3351.3,3350.9,2.38737]
[1722224145611,0.31166895,3351.3,3350.9,2.3874]
[1722224145794,0.31166895,3351.3,3351.0,2.38734]
[1722224146112,0.31166895,3351.3,3350.8,2.38748]
[1722224146311,0.31166895,3351.3,3350.9,2.38741]
[1722224149107,0.31166895,3351.3,3350.9,2.38623815]
[1722224149289,0.31166895,3351.3,3350.7,2.38754]
[1722224149484,0.31166895,3351.3,3350.4,2.38775]
[1722224149689,0.31166895,3351.3,3350.7,2.38755]
[1722224149890,2.69880895,3351.3,3350.5,2.38769]
[1722224150080,2.69880895,3351.3,3350.6,2.38762]
[1722224150275,2.38723,3351.2,3350.4,2.38775]
[1722224150614,2.38729,3351.1,3350.4,2.38775]
[1722224150977,2.38734,3351.0,3350.4,2.38775]
[1722224151411,2.38723,3351.2,3350.5,2.38768]
[1722224151612,6.1958259,3351.2,3350.5,2.38768]
[1722224152112,3.8085959,3351.2,3350.6,2.38762]
[1722224152334,0.8085959,3351.2,3350.6,2.38762]
[1722224153597,0.8085959,3351.2,3350.7,2.38755]
[1722224153794,0.8085959,3351.2,3350.5,4.77535]
[1722224154116,5.69879895,3351.3,3350.6,2.38762]
[1722224154355,0.55,3351.2,3350.6,2.38762]
[1722224155131,0.55,3351.2,3350.3,2.38782]
[1722224155132,4.64762,3351.1,3350.5,2.3877]
[1722224155856,0.31166895,3351.3,3350.9,2.3874]
[1722224156068,0.31166895,3351.3,3351.1,2.38724]
[1722224156358,0.31166895,3351.3,3350.9,2.38741]
[1722224156510,0.31166895,3351.3,3351.0,2.38733]
[1722224157154,0.31166895,3351.3,3350.8,2.38744]
[1722224157454,0.31166895,3351.3,3350.9,2.38741]
[1722224157772,0.31166895,3351.3,3350.5,2.3877]
[1722224157976,0.31166895,3351.3,3351.1,2.38726]
[1722224158246,0.31166895,3351.3,3351.2,2.3872]
[1722224160060,0.31166895,3351.3,3351.2,4.7744]
[1722224160210,4.69924,3352.9,3352.1,2.3865]
[1722224160412,0.708518,3352.8,3352.2,2.38648]
[1722224160642,1.02016302,3352.8,3352.2,2.38648]
[1722224161047,1.02016302,3352.8,3352.0,2.38657]
[1722224161229,2.38618,3352.7,3352.0,2.38657]
[1722224161449,3.40626302,3352.8,3352.0,2.38657]
[1722224161618,3.5719353,3352.7,3352.1,2.38655]
[1722224161820,3.0,3352.6,3351.9,7.32]
[1722224162140,2.38683,3351.8,3351.5,19.76]
[1722224162327,3.0,3352.6,3351.2,2.38714]
[1722224162328,0.238683,3351.7,3351.2,2.38714]
[1722224162517,2.38663,3352.0,3351.3,2.38707]
[1722224162717,2.38663,3352.0,3351.2,2.38714]
[1722224162718,2.38678,3351.8,3351.2,2.38714]
[1722224162949,0.55,3351.7,3351.2,2.38714]
[1722224163252,0.55,3351.7,3351.0,9.70734]
[1722224163429,5.818381,3351.7,3351.0,7.32]
[1722224163628,2.38711,3351.4,3351.0,7.32]
[1722224163833,2.38726,3351.2,3350.7,19.85]
[1722224164154,2.38728,3351.1,3350.6,7.32]
[1722224164456,2.38734,3351.0,3350.6,7.32]
[1722224164752,2.93746,3350.9,3350.6,7.32]
[1722224165118,0.55,3350.9,3350.6,7.32]
[1722224165315,2.38756,3350.7,3350.6,7.32]
[1722224165823,5.42516,3350.7,3350.6,7.32]
[1722224166040,6.261425,3350.7,3350.6,7.32]
[1722224167565,6.873865,3350.7,3349.8,7.32]
[1722224167721,0.55,3350.6,3349.8,7.32]
[1722224167926,2.38792,3350.2,3349.8,7.32]
[1722224168153,0.55,3350.1,3349.8,7.32]
[1722224168557,2.38778,3350.4,3349.8,7.32]
[1722224168558,0.55,3350.3,3349.8,7.32]
[1722224168723,0.55,3350.3,3349.8,9.7082]
[1722224169122,0.55,3350.3,3349.8,7.32]
[1722224169776,2.93784,3350.3,3349.8,7.32]
[1722224169944,0.532554,3350.2,3349.8,7.32]
[1722224170146,0.55,3350.1,3349.8,7.32]
[1722224171045,0.55,3350.1,3349.7,2.38825]
[1722224171446,0.55,3350.2,3349.7,2.38825]
[1722224171880,3.0,3350.6,3350.1,2.38798]
[1722224172179,0.55,3350.5,3350.0,2.38805]
[1722224172490,0.477441,3351.1,3349.7,1.721672]
[1722224172648,2.38721,3351.2,3350.2,2.38786]
[1722224172845,2.38742,3350.9,3350.2,2.38786]
[1722224173553,2.38727,3351.1,3349.7,1.721672]
[1722224173554,2.38727,3351.1,3350.4,2.38776]
[1722224173866,2.38727,3351.1,3349.7,4.109902]
[1722224173867,1.23761435,3351.3,3350.6,2.38762]
[1722224174063,2.38725,3351.2,3350.5,2.38768]
[1722224174313,2.38738,3351.0,3350.3,9.7078]
[1722224174677,2.38738,3351.0,3350.4,2.38777]
[1722224174988,1.58941579,3351.3,3350.5,2.3877]
[1722224175189,0.55,3351.2,3350.7,2.38755]
[1722224175391,4.07414905,3351.2,3350.5,2.3877]
[1722224175601,3.0,3351.1,3350.5,2.3877]
[1722224175903,2.38736,3351.0,3350.4,2.38777]
[1722224176099,0.55,3350.9,3350.4,2.38777]
[1722224176299,2.93742,3350.9,3350.3,7.32]
[1722224176499,2.38749,3350.8,3350.3,7.32]
[1722224176703,2.93757,3350.7,3350.3,7.32]
[1722224176881,2.38764,3350.6,3350.3,7.32]
[1722224177087,0.55,3350.7,3350.0,2.38804]
[1722224177270,4.78761435,3350.7,3350.0,2.38804]
[1722224177470,3.55,3350.7,3350.0,2.38804]
[1722224177732,3.55,3350.7,3350.1,2.38798]
[1722224177886,4.23761435,3350.9,3350.5,2.3877]
[1722224178071,0.55,3350.8,3350.3,2.3878]
[1722224178265,0.55,3350.8,3350.5,2.38769]
[1722224178471,1.23761435,3350.8,3350.5,2.38769]
[1722224179165,1.23761435,3350.8,3350.6,2.38762]
[1722224179395,1.23761435,3350.9,3350.6,2.38762]
[1722224179733,1.54934271,3351.1,3350.6,0.238762]
[1722224179887,0.31172836,3351.1,3350.6,0.238762]
[1722224180225,0.31172836,3351.1,3350.9,2.38736]
[1722224180527,0.31172836,3351.1,3351.0,4.77468]
[1722224180734,0.31172836,3351.1,3351.0,5.252148]
[1722224182020,1.23761435,3352.1,3351.0,2.753968]
[1722224182169,2.3925,3352.6,3352.0,2.38663]
[1722224182170,1.23761435,3352.3,3352.0,2.38663]
[1722224182374,1.23761435,3352.4,3352.0,2.38663]
[1722224182605,0.31171522,3352.1,3352.0,2.38663]
[1722224183510,0.31171522,3352.1,3352.0,4.77326]
[1722224184383,0.31171522,3352.1,3352.0,7.637216]
[1722224184713,1.25005776,3353.3,3353.1,2.38584]
[1722224184914,1.25005776,3353.5,3353.2,2.38577]
[1722224185207,1.56257413,3353.7,3353.1,2.38583]
[1722224185208,0.31170477,3353.3,3353.1,2.38583]
[1722224185411,0.31170477,3353.3,3353.2,2.38578]
[1722224185908,0.31170477,3353.3,3352.6,9.70614]
[1722224186109,0.31170477,3353.3,3352.8,2.38604]
[1722224186989,0.31170477,3353.3,3352.9,2.38598]
[1722224187186,0.31170477,3353.3,3353.2,2.38578]
[1722224187721,0.31170477,3353.3,3352.9,1.209212]
[1722224187722,1.247909,3354.3,3353.7,2.38541]
[1722224187880,3.632769,3354.5,3353.7,2.38541]
[1722224188099,0.31173219,3354.2,3353.8,2.38535]
[1722224189337,0.31173219,3354.2,3353.4,7.32]
[1722224189515,0.31173219,3354.2,3353.8,2.38531]
[1722224189830,0.31173219,3354.2,3353.4,9.70558]
[1722224189831,0.31173219,3354.2,3354.1,4.77028]
[1722224190694,0.31173219,3354.2,3353.4,7.32]
[1722224191032,2.38521,3354.0,3353.4,7.32]
[1722224191229,0.26967322,3354.1,3353.4,7.32]
[1722224191396,2.38524,3354.0,3353.4,7.32]
[1722224191597,2.38535,3353.8,3353.4,7.32]
[1722224191792,2.38524,3354.0,3353.4,7.32]
[1722224192005,1.08517254,3353.9,3353.4,7.32]
[1722224192228,2.38556,3353.5,3353.4,7.32]
[1722224192429,2.38556,3353.5,3352.8,9.70605]
[1722224193541,2.38542,3353.7,3352.8,7.32]
[1722224193843,2.38542,3353.7,3353.1,2.38585]
[1722224194012,2.3855,3353.6,3352.9,2.38595]
[1722224194350,0.23855,3353.5,3353.0,2.38591]
[1722224195060,2.62414,3353.5,3352.8,9.70606]
[1722224195261,0.23855,3353.5,3353.0,2.38592]
[1722224196722,2.38576,3353.3,3352.8,7.32]
[1722224196929,2.2752,3353.4,3352.8,7.32]
[1722224196930,2.38597,3353.0,3352.8,7.32]
[1722224197115,2.38619,3352.7,3352.2,7.32]
[1722224197319,2.2752,3353.4,3351.9,12.44]
[1722224197320,2.38634,3352.5,3351.9,12.44]
[1722224197628,0.238634,3352.4,3351.9,14.82665]
[1722224197812,0.1,3353.0,3351.9,12.44]
[1722224198020,0.1,3353.0,3352.4,2.38628]
[1722224198443,0.1,3353.0,3352.5,2.38627]
[1722224198746,0.1,3353.0,3352.0,2.38659]
[1722224198931,0.1,3353.0,3352.4,2.3863]
[1722224199313,0.1,3353.0,3352.7,2.38611]
[1722224199515,0.1,3353.0,3352.5,2.38627]
[1722224199847,0.1,3353.0,3352.3,2.3864]
[1722224200155,2.48597,3353.0,3352.3,2.3864]
[1722224200316,2.386,3352.9,3352.3,2.3864]
[1722224200669,2.38607,3352.8,3352.2,2.38648]
[1722224201150,2.38607,3352.8,3351.9,2.38669]
[1722224201652,2.38601,3352.9,3352.2,2.38647]
[1722224202014,2.38601,3352.9,3352.3,2.38639]
[1722224202219,2.38601,3352.9,3352.0,2.38662]
[1722224202422,2.38621,3352.6,3351.8,7.32]
[1722224202642,0.5359045,3352.9,3351.8,7.32]
[1722224202643,0.1,3353.0,3351.8,9.70672]
[1722224202817,0.55,3352.9,3351.8,9.70672]
[1722224203187,2.38642,3352.3,3351.8,7.32]
[1722224203537,2.38638,3352.4,3351.8,7.32]
[1722224204154,2.38621,3352.6,3351.8,7.32]
[1722224204409,0.55,3352.5,3352.0,2.38663]
[1722224205566,2.38629,3352.5,3351.9,2.3867]
[1722224205869,2.69847012,3352.8,3351.9,2.3867]
[1722224206033,0.82984701,3352.7,3351.9,2.3867]
[1722224206238,2.38628,3352.5,3351.9,2.3867]
[1722224206446,2.38628,3352.5,3351.8,7.32]
[1722224206766,2.38636,3352.4,3351.8,7.32]
[1722224206967,2.38651,3352.2,3351.8,7.32]
[1722224207668,2.38636,3352.4,3351.8,7.32]
[1722224207967,2.38636,3352.4,3351.8,9.70677]
[1722224209382,2.38622,3352.6,3351.9,2.3867]
[1722224209569,3.21597701,3352.7,3352.0,2.3866]
[1722224209874,2.3862,3352.6,3351.8,9.70673]
[1722224210075,2.38636,3352.4,3351.8,7.32]
[1722224210576,2.38642,3352.3,3351.8,7.32]
[1722224211476,2.3865,3352.2,3351.8,7.32]
[1722224211660,2.38668,3352.0,3351.8,7.32]
[1722224211866,2.38671,3351.9,3351.3,7.32]
[1722224212082,2.9366,3352.1,3351.4,2.38705]
[1722224212265,2.9366,3352.1,3351.5,2.38698]
[1722224212443,0.55,3352.1,3351.6,2.38691]
[1722224212642,2.38646,3352.3,3351.3,7.32]
[1722224212955,2.38646,3352.3,3351.4,2.717]
[1722224213286,2.38646,3352.3,3351.5,2.38698]
[1722224213461,2.38646,3352.3,3351.6,2.38688]
[1722224213871,2.38628,3352.5,3351.7,2.38684]
[1722224214082,0.55,3352.4,3351.8,2.38673]
[1722224214264,2.93636,3352.4,3351.7,2.38684]
[1722224214475,0.55,3352.4,3351.8,2.38676]
[1722224214681,2.93635,3352.4,3351.8,2.38676]
[1722224215186,0.55,3352.4,3351.8,2.38676]
[1722224215489,0.55,3352.4,3351.9,2.38669]
[1722224215689,2.38621,3352.6,3352.0,2.38663]
[1722224216001,0.55,3352.5,3352.0,2.38663]
[1722224216580,2.69847012,3352.8,3352.1,2.38649]
[1722224216874,0.55,3352.7,3352.2,2.38649]
[1722224217079,0.31239012,3352.8,3352.2,2.38646]
[1722224217297,0.31239012,3352.8,3352.7,2.38613]
[1722224219380,0.31239012,3352.8,3352.7,4.77226]
[1722224219910,0.31239012,3352.8,3352.7,2.38613]
[1722224220794,0.31239012,3352.8,3352.2,2.38649]
[1722224220996,0.31239012,3352.8,3352.4,2.38634]
[1722224221529,0.31239012,3352.8,3352.5,2.38627]
[1722224223435,0.31239012,3352.8,3352.3,2.38636]
[1722224223641,0.31239012,3352.8,3352.4,2.3863]
[1722224224612,2.69850012,3352.8,3352.1,2.38653]
[1722224224939,2.38616,3352.7,3352.1,2.38653]
[1722224225320,0.83083213,3352.8,3352.1,2.38653]
[1722224225547,0.83083213,3352.8,3352.2,2.38643]
[1722224225826,0.31239012,3352.8,3352.2,2.38643]
[1722224226031,0.31239012,3352.8,3352.3,2.38641]
[1722224226334,0.31239012,3352.8,3352.2,2.38643]
[1722224226335,2.38618,3352.7,3352.0,2.38663]
[1722224226546,0.50845601,3352.6,3352.0,2.38663]
[1722224226726,0.50845601,3352.6,3352.1,2.38656]
[1722224227438,0.31239012,3352.8,3352.2,2.38644]
[1722224227587,0.31239012,3352.8,3352.4,2.38634]
[1722224228243,0.31239012,3352.8,3352.2,2.38644]
[1722224228531,2.69846012,3352.8,3352.2,2.38644]
[1722224228729,0.31239012,3352.8,3352.2,2.38644]
[1722224229032,0.31239012,3352.8,3352.4,2.38634]
[1722224229568,0.31239012,3352.8,3352.0,2.3866]
[1722224229691,0.31239012,3352.8,3352.3,2.38642]
[1722224231186,0.31239012,3352.8,3351.8,7.32]
[1722224231391,0.31239012,3352.8,3352.0,2.38661]
[1722224231692,0.31239012,3352.8,3352.4,2.38634]
[1722224232099,0.31239012,3352.8,3351.8,7.32]
[1722224232330,0.31239012,3352.8,3352.2,2.38643]
[1722224232639,0.31239012,3352.8,3352.3,2.38641]
[1722224232784,0.27984101,3352.7,3352.1,2.38655]
[1722224233094,2.38636,3352.4,3351.8,7.32]
[1722224233423,2.63624101,3352.7,3351.6,2.38691]
[1722224233424,2.38649,3352.3,3351.6,2.38691]
[1722224233723,2.69890993,3352.3,3351.5,22.14696]
[1722224234497,2.69890993,3352.3,3351.7,2.3868]
[1722224234698,0.31241993,3352.3,3351.9,2.38669]
[1722224235099,0.31241993,3352.3,3351.7,2.38683]
[1722224235398,0.31241993,3352.3,3351.8,2.38676]
[1722224235598,0.31241993,3352.3,3352.0,2.38657]
[1722224235803,0.31241993,3352.3,3352.1,2.38654]
[1722224236000,0.31241993,3352.3,3352.2,2.38649]
[1722224237032,0.31241993,3352.3,3352.0,2.38659]
[1722224237821,0.31241993,3352.3,3352.0,2.38658]
[1722224238358,0.31241993,3352.3,3351.5,22.14696]
[1722224238359,0.31241993,3352.3,3351.6,2.38688]
[1722224238626,1.56229013,3352.3,3351.8,2.38673]
[1722224238803,1.56229013,3352.3,3351.9,2.3867]
[1722224239008,0.31241993,3352.3,3351.9,2.3867]
[1722224239533,1.56229013,3352.3,3351.9,2.3867]
[1722224240148,1.56229013,3352.3,3351.8,2.38673]
[1722224240303,3.94872013,3352.3,3351.6,2.38686]
[1722224240503,1.2498702,3352.2,3351.5,7.32]
[1722224240797,1.2498702,3352.1,3351.7,2.38684]
[1722224241100,1.2498702,3352.0,3351.5,7.32]
[1722224241416,4.86282,3351.8,3351.5,7.32]
[1722224241619,1.25215831,3351.7,3351.5,7.32]
[1722224241800,3.63906831,3351.6,3351.5,7.32]
[1722224242707,2.38691,3351.6,3351.5,7.32]
[1722224242922,1.56519789,3351.7,3351.5,7.32]
[1722224243123,1.25246173,3351.6,3351.5,7.32]
[1722224243703,1.25246173,3351.8,3351.7,2.38684]
[1722224243905,1.25246173,3352.0,3351.8,2.38677]
[1722224244112,0.31241993,3352.3,3352.0,2.38663]
[1722224244403,1.2519663,3352.2,3351.9,2.3867]
[1722224244607,1.56438623,3352.3,3351.9,2.3867]
[1722224244813,1.2519663,3352.2,3351.9,2.3867]
[1722224245333,1.56438623,3352.3,3351.9,2.3867]
[1722224245538,0.31241993,3352.3,3351.9,0.477353]
[1722224245737,0.31241993,3352.3,3352.2,2.38649]
[1722224246599,0.31241993,3352.3,3352.2,4.77298]
[1722224246803,1.2519663,3352.9,3352.6,2.38619]
[1722224247102,0.3123512,3352.8,3352.7,2.38613]
[1722224247356,0.3123512,3352.8,3352.5,2.38622]
[1722224248005,0.3123512,3352.8,3352.4,2.38634]
[1722224248214,1.5643175,3352.8,3352.4,2.38634]
[1722224248436,1.5643175,3352.8,3352.6,2.3862]
[1722224248647,0.3123512,3352.8,3352.6,2.3862]
[1722224249127,0.3123512,3352.8,3352.4,2.38629]
[1722224249325,1.5643175,3352.8,3352.4,2.38629]
[1722224250057,0.3123512,3352.8,3352.4,2.38629]
[1722224250461,1.5643175,3352.8,3352.2,2.38647]
[1722224250759,1.2519663,3352.7,3352.3,2.38641]
[1722224251176,1.2519663,3352.7,3352.4,2.38632]
[1722224251317,1.5643175,3352.8,3352.3,2.38641]
[1722224251516,1.2519663,3352.7,3352.3,2.38641]
[1722224251719,1.5643175,3352.8,3352.3,2.38641]
[1722224252445,1.2519663,3352.7,3352.3,2.38641]
[1722224252650,1.2519663,3352.7,3352.1,9.70655]
[1722224252819,3.6381463,3352.7,3352.1,9.70656]
[1722224253019,1.2519663,3352.6,3352.1,9.70656]
[1722224253221,1.2519663,3352.5,3352.1,9.70656]
[1722224253844,1.2519663,3352.6,3352.3,2.38637]
[1722224254176,1.2519663,3352.7,3352.4,2.38628]
[1722224254376,1.87692255,3352.8,3352.4,2.38628]